[Event "Late-Titled-Tuesday-Blitz-June-25-2024"]
[Site "Chess.com"]
[Date "2024.06.25"]
[Round "2"]
[White "AryanTari"]
[Black "ukchessbomber"]
[Result "1-0"]
[WhiteElo "3017"]
[BlackElo "2618"]
[TimeControl "180+1"]
[EndTime "14:17:31 PDT"]
[Termination "AryanTari won by resignation"]

1. e4 {[%clk 0:03:00.9]} 1... b6 {[%clk 0:02:59.1]} 2. d4 {[%clk 0:02:59.8]}
2... Bb7 {[%clk 0:02:59.7]} 3. Nc3 {[%clk 0:03:00.2]} 3... d6 {[%clk 0:03:00.2]}
4. f4 {[%clk 0:02:57.7]} 4... Nd7 {[%clk 0:03:00.6]} 5. Nf3 {[%clk 0:02:57.7]}
5... g6 {[%clk 0:03:01]} 6. Bd3 {[%clk 0:02:57.3]} 6... Bg7 {[%clk 0:03:01.6]}
7. e5 {[%clk 0:02:48.7]} 7... e6 {[%clk 0:03:00.5]} 8. h4 {[%clk 0:02:26]} 8...
a6 {[%clk 0:02:49.6]} 9. h5 {[%clk 0:02:25.2]} 9... c5 {[%clk 0:02:49.7]} 10.
Ng5 {[%clk 0:02:01.7]} 10... cxd4 {[%clk 0:02:28]} 11. hxg6 {[%clk 0:01:48.9]}
11... hxg6 {[%clk 0:02:27.5]} 12. Rxh8 {[%clk 0:01:48.3]} 12... Bxh8 {[%clk
0:02:28.4]} 13. Nce4 {[%clk 0:01:33.7]} 13... Bxe4 {[%clk 0:02:28.4]} 14. Bxe4
{[%clk 0:01:33.5]} 14... Rc8 {[%clk 0:02:28.9]} 15. Qg4 {[%clk 0:01:24.8]} 15...
dxe5 {[%clk 0:01:40.1]} 16. Bxg6 {[%clk 0:00:46.8]} 16... fxg6 {[%clk
0:01:39.2]} 17. Qxe6+ {[%clk 0:00:46.8]} 17... Qe7 {[%clk 0:01:39.8]} 18. Qxg6+
{[%clk 0:00:43.3]} 18... Kd8 {[%clk 0:01:38.3]} 19. Ne6+ {[%clk 0:00:40.3]}
19... Qxe6 {[%clk 0:01:34.2]} 20. Qxe6 {[%clk 0:00:41.2]} 20... Ne7 {[%clk
0:01:30]} 21. fxe5 {[%clk 0:00:39]} 21... Rc6 {[%clk 0:00:58.6]} 22. Qf7 {[%clk
0:00:36.8]} 22... Bxe5 {[%clk 0:00:53.4]} 23. Bg5 {[%clk 0:00:36]} 23... Bf6
{[%clk 0:00:53.9]} 24. Bxf6 {[%clk 0:00:31.6]} 24... Rxf6 {[%clk 0:00:54.8]} 25.
Qg7 {[%clk 0:00:28.5]} 25... Re6+ {[%clk 0:00:46.5]} 26. Kd2 {[%clk 0:00:28.1]}
26... Ne5 {[%clk 0:00:43.9]} 27. b3 {[%clk 0:00:24.6]} 27... N7c6 {[%clk
0:00:38.6]} 28. Rf1 {[%clk 0:00:22]} 28... Nd7 {[%clk 0:00:34.5]} 29. Rf7 {[%clk
0:00:19.6]} 29... Rd6 {[%clk 0:00:34.5]} 30. Qg5+ {[%clk 0:00:18.8]} 30... Kc8
{[%clk 0:00:29.9]} 31. Qf5 {[%clk 0:00:18.7]} 31... Nd8 {[%clk 0:00:20.7]} 32.
Re7 {[%clk 0:00:18.6]} 32... Nc6 {[%clk 0:00:21]} 33. Re8+ {[%clk 0:00:18.6]}
33... Kc7 {[%clk 0:00:21.4]} 34. Qf4 {[%clk 0:00:18.9]} 34... Nc5 {[%clk
0:00:12.4]} 35. g4 {[%clk 0:00:18.9]} 35... Nb4 {[%clk 0:00:06]} 36. Re7+ {[%clk
0:00:16.7]} 36... Kc6 {[%clk 0:00:06.2]} 37. Qf3+ {[%clk 0:00:16.6]} 37... Nd5
{[%clk 0:00:06.2]} 38. b4 {[%clk 0:00:15.6]} 38... Na4 {[%clk 0:00:02.8]} 39. g5
{[%clk 0:00:14.5]} 39... Kb5 {[%clk 0:00:02.3]} 40. Re5 {[%clk 0:00:14.1]} 40...
Nc3 {[%clk 0:00:02.1]} 41. g6 {[%clk 0:00:13.2]} 41... Kxb4 {[%clk 0:00:01.6]}
42. g7 {[%clk 0:00:13.1]} 42... Rg6 {[%clk 0:00:02]} 43. Rxd5 {[%clk 0:00:13.3]}
43... Nxd5 {[%clk 0:00:02.9]} 44. Qxd5 {[%clk 0:00:13.7]} 44... Rxg7 {[%clk
0:00:01.3]} 45. Qxd4+ {[%clk 0:00:13.8]} 1-0

[Event "Late-Titled-Tuesday-Blitz-June-25-2024"]
[Site "Chess.com"]
[Date "2024.06.25"]
[Round "2"]
[White "sergeikim"]
[Black "rasmussvane"]
[Result "0-1"]
[WhiteElo "2608"]
[BlackElo "2978"]
[TimeControl "180+1"]
[EndTime "14:17:31 PDT"]
[Termination "rasmussvane won by resignation"]

1. d4 {[%clk 0:03:00.9]} 1... d5 {[%clk 0:02:53.3]} 2. c4 {[%clk 0:03:00.6]}
2... e6 {[%clk 0:02:53.8]} 3. Nc3 {[%clk 0:03:00.3]} 3... h6 {[%clk 0:02:52]} 4.
Nf3 {[%clk 0:03:00]} 4... Nf6 {[%clk 0:02:52.3]} 5. Bf4 {[%clk 0:02:58.8]} 5...
Bd6 {[%clk 0:02:47.7]} 6. Bg3 {[%clk 0:02:57.3]} 6... O-O {[%clk 0:02:47.6]} 7.
e3 {[%clk 0:02:57.3]} 7... b6 {[%clk 0:02:47.9]} 8. cxd5 {[%clk 0:02:56.2]} 8...
Nxd5 {[%clk 0:02:33.8]} 9. Nxd5 {[%clk 0:02:55.4]} 9... exd5 {[%clk 0:02:34.7]}
10. Bd3 {[%clk 0:02:55.1]} 10... Be6 {[%clk 0:02:20.9]} 11. O-O {[%clk
0:02:51.5]} 11... c5 {[%clk 0:02:21.1]} 12. Ne5 {[%clk 0:02:45]} 12... c4 {[%clk
0:02:09.9]} 13. Bc2 {[%clk 0:02:44.2]} 13... Bxe5 {[%clk 0:02:04.8]} 14. dxe5
{[%clk 0:02:37.6]} 14... Nc6 {[%clk 0:01:55.7]} 15. f4 {[%clk 0:02:34.6]} 15...
f5 {[%clk 0:01:42.2]} 16. Bf2 {[%clk 0:02:14.9]} 16... Qe7 {[%clk 0:01:36]} 17.
a3 {[%clk 0:02:12.8]} 17... Rfd8 {[%clk 0:01:35.7]} 18. Qf3 {[%clk 0:02:12.2]}
18... Rac8 {[%clk 0:01:33.6]} 19. Rad1 {[%clk 0:02:07.2]} 19... b5 {[%clk
0:01:32.1]} 20. h3 {[%clk 0:01:58.2]} 20... Qf7 {[%clk 0:01:20.6]} 21. g4 {[%clk
0:01:56.2]} 21... fxg4 {[%clk 0:01:11.4]} 22. hxg4 {[%clk 0:01:55.8]} 22... Nxe5
{[%clk 0:01:11.8]} 23. Qg3 {[%clk 0:01:53.4]} 23... Nxg4 {[%clk 0:00:55.4]} 24.
f5 {[%clk 0:01:53]} 24... Bxf5 {[%clk 0:00:54.5]} 25. Be1 {[%clk 0:01:47]} 25...
g6 {[%clk 0:00:53.9]} 26. Bc3 {[%clk 0:01:28.1]} 26... Qe6 {[%clk 0:00:48.2]}
27. Bxf5 {[%clk 0:01:27.9]} 27... gxf5 {[%clk 0:00:49.1]} 28. Bd4 {[%clk
0:01:26.6]} 28... Kh7 {[%clk 0:00:47.9]} 29. Qf3 {[%clk 0:01:20.8]} 29... Rg8
{[%clk 0:00:45.6]} 30. Kh1 {[%clk 0:01:20.1]} 30... Rg5 {[%clk 0:00:42.1]} 31.
Rd2 {[%clk 0:01:15.2]} 31... Rcg8 {[%clk 0:00:39]} 32. Rg2 {[%clk 0:01:12]}
32... Qe4 {[%clk 0:00:24.6]} 33. Qxe4 {[%clk 0:01:06.7]} 33... dxe4 {[%clk
0:00:25.5]} 34. Bxa7 {[%clk 0:01:02.9]} 34... Ne5 {[%clk 0:00:22.3]} 35. Rxg5
{[%clk 0:01:01.2]} 35... Rxg5 {[%clk 0:00:23.2]} 36. Bd4 {[%clk 0:00:54.1]}
36... Nf3 {[%clk 0:00:22.8]} 37. Bc3 {[%clk 0:00:50]} 37... Kg6 {[%clk 0:00:22]}
38. Ba5 {[%clk 0:00:43.1]} 38... Kh5 {[%clk 0:00:21.2]} 39. Bc7 {[%clk
0:00:42.4]} 39... Kg4 {[%clk 0:00:17.1]} 40. Rf2 {[%clk 0:00:38]} 40... Kh3
{[%clk 0:00:14.5]} 41. Rf1 {[%clk 0:00:33.9]} 41... Rg2 {[%clk 0:00:11.9]} 42.
Bf4 {[%clk 0:00:31.9]} 42... h5 {[%clk 0:00:12]} 43. Rb1 {[%clk 0:00:30]} 43...
h4 {[%clk 0:00:11.2]} 44. Bh6 {[%clk 0:00:22.8]} 44... Re2 {[%clk 0:00:09.7]}
45. Bf4 {[%clk 0:00:21.9]} 45... Kg4 {[%clk 0:00:10.2]} 46. Bh6 {[%clk
0:00:19.5]} 46... h3 {[%clk 0:00:10.6]} 47. Bf4 {[%clk 0:00:19.3]} 47... h2
{[%clk 0:00:11]} 48. Bh6 {[%clk 0:00:18.3]} 48... Kh3 {[%clk 0:00:11.3]} 49. Bf4
{[%clk 0:00:18.1]} 49... Rg2 {[%clk 0:00:11.1]} 50. Bh6 {[%clk 0:00:14.4]} 50...
Rg1+ {[%clk 0:00:10.9]} 0-1

[Event "Late-Titled-Tuesday-Blitz-June-25-2024"]
[Site "Chess.com"]
[Date "2024.06.25"]
[Round "2"]
[White "UB_TheQueen"]
[Black "mostafa_sakha"]
[Result "0-1"]
[WhiteElo "2038"]
[BlackElo "2447"]
[TimeControl "180+1"]
[EndTime "14:17:35 PDT"]
[Termination "mostafa_sakha won by resignation"]

1. e4 {[%clk 0:03:00.9]} 1... e5 {[%clk 0:02:59.3]} 2. Nf3 {[%clk 0:03:00.8]}
2... Nc6 {[%clk 0:02:59.4]} 3. Bc4 {[%clk 0:02:59.4]} 3... Nf6 {[%clk
0:02:59.4]} 4. Ng5 {[%clk 0:02:58.7]} 4... d5 {[%clk 0:02:59.4]} 5. exd5 {[%clk
0:02:59.6]} 5... Na5 {[%clk 0:02:59.7]} 6. Bb5+ {[%clk 0:03:00]} 6... c6 {[%clk
0:03:00.3]} 7. dxc6 {[%clk 0:03:00.6]} 7... bxc6 {[%clk 0:03:01.2]} 8. Qf3
{[%clk 0:03:00.7]} 8... Be7 {[%clk 0:02:59.1]} 9. Bd3 {[%clk 0:02:57.5]} 9... h6
{[%clk 0:02:51.8]} 10. Ne4 {[%clk 0:02:56.8]} 10... Nd5 {[%clk 0:02:51.6]} 11.
Ng3 {[%clk 0:02:55.9]} 11... g6 {[%clk 0:02:38]} 12. O-O {[%clk 0:02:38.4]}
12... h5 {[%clk 0:02:30]} 13. Re1 {[%clk 0:02:33.6]} 13... Qd6 {[%clk 0:02:09]}
14. Nc3 {[%clk 0:02:32.2]} 14... f5 {[%clk 0:02:07]} 15. Nxd5 {[%clk 0:02:21.9]}
15... cxd5 {[%clk 0:02:03.7]} 16. Bb5+ {[%clk 0:02:21.7]} 16... Bd7 {[%clk
0:01:36.3]} 17. Bxd7+ {[%clk 0:02:08.5]} 17... Kxd7 {[%clk 0:01:37.2]} 18. Qe2
{[%clk 0:02:08.4]} 18... h4 {[%clk 0:01:30.9]} 19. Nh1 {[%clk 0:02:07.9]} 19...
Nc6 {[%clk 0:01:28.5]} 20. d3 {[%clk 0:02:04.7]} 20... e4 {[%clk 0:01:20.8]} 21.
dxe4 {[%clk 0:02:02.1]} 21... fxe4 {[%clk 0:01:16.8]} 22. Qg4+ {[%clk
0:01:56.3]} 22... Qe6 {[%clk 0:01:16.7]} 23. Qxe6+ {[%clk 0:01:47.2]} 23... Kxe6
{[%clk 0:01:17.6]} 24. f3 {[%clk 0:01:48]} 24... Nd4 {[%clk 0:01:13.1]} 25. Rb1
{[%clk 0:01:15.7]} 25... Nxc2 {[%clk 0:01:10.8]} 26. Re2 {[%clk 0:01:16.2]}
26... Nd4 {[%clk 0:01:10.1]} 27. Rd2 {[%clk 0:01:10.7]} 27... Bc5 {[%clk
0:01:03.5]} 28. Kf1 {[%clk 0:01:02.5]} 28... e3 {[%clk 0:01:02.5]} 29. Rd3
{[%clk 0:00:57.8]} 29... Nf5 {[%clk 0:00:52.2]} 30. b4 {[%clk 0:00:50.8]} 30...
Bb6 {[%clk 0:00:51.5]} 31. a4 {[%clk 0:00:29.8]} 31... d4 {[%clk 0:00:49.5]} 32.
a5 {[%clk 0:00:26.4]} 32... Bc7 {[%clk 0:00:49.3]} 33. Bb2 {[%clk 0:00:21.7]}
33... Rad8 {[%clk 0:00:44.7]} 34. Re1 {[%clk 0:00:16.6]} 34... Bxh2 {[%clk
0:00:42.5]} 35. Nf2 {[%clk 0:00:16.4]} 35... Bg3 {[%clk 0:00:40.4]} 36. Ng4
{[%clk 0:00:09.2]} 36... Bxe1 {[%clk 0:00:39.1]} 37. Kxe1 {[%clk 0:00:10.1]}
37... h3 {[%clk 0:00:37.3]} 38. gxh3 {[%clk 0:00:09.8]} 38... Rxh3 {[%clk
0:00:36.7]} 39. Ke2 {[%clk 0:00:07.2]} 39... Kd5 {[%clk 0:00:31.3]} 40. b5
{[%clk 0:00:07.5]} 40... Rdh8 {[%clk 0:00:29.6]} 41. Nxe3+ {[%clk 0:00:07.7]}
41... Nxe3 {[%clk 0:00:29.1]} 42. Rxd4+ {[%clk 0:00:08.1]} 42... Kc5 {[%clk
0:00:28.9]} 43. Kxe3 {[%clk 0:00:08.4]} 43... Re8+ {[%clk 0:00:22.7]} 44. Kd3
{[%clk 0:00:08.7]} 44... Rxf3+ {[%clk 0:00:22.4]} 45. Kd2 {[%clk 0:00:09.1]}
45... Rf2+ {[%clk 0:00:20]} 46. Kc1 {[%clk 0:00:07.2]} 46... Re1+ {[%clk
0:00:19.6]} 47. Rd1 {[%clk 0:00:06]} 47... Rxd1+ {[%clk 0:00:20.1]} 48. Kxd1
{[%clk 0:00:06.9]} 48... Rxb2 {[%clk 0:00:20.6]} 49. b6 {[%clk 0:00:07.4]} 49...
axb6 {[%clk 0:00:20.9]} 50. axb6 {[%clk 0:00:08.3]} 50... Rxb6 {[%clk
0:00:20.9]} 0-1

[Event "Late-Titled-Tuesday-Blitz-June-25-2024"]
[Site "Chess.com"]
[Date "2024.06.25"]
[Round "2"]
[White "OppieZippy"]
[Black "anasta10"]
[Result "0-1"]
[WhiteElo "2351"]
[BlackElo "2626"]
[TimeControl "180+1"]
[EndTime "14:17:36 PDT"]
[Termination "anasta10 won by resignation"]

1. d4 {[%clk 0:01:48.8]} 1... Nf6 {[%clk 0:02:58]} 2. c4 {[%clk 0:01:48.7]} 2...
g6 {[%clk 0:02:58.4]} 3. Nf3 {[%clk 0:01:48]} 3... Bg7 {[%clk 0:02:58.8]} 4. Nc3
{[%clk 0:01:48]} 4... c5 {[%clk 0:02:58.4]} 5. dxc5 {[%clk 0:01:46.1]} 5... O-O
{[%clk 0:02:57.7]} 6. e3 {[%clk 0:01:46.3]} 6... Na6 {[%clk 0:02:56.6]} 7. Be2
{[%clk 0:01:44.7]} 7... Nxc5 {[%clk 0:02:56.7]} 8. O-O {[%clk 0:01:43.9]} 8...
d6 {[%clk 0:02:57.1]} 9. Nd4 {[%clk 0:01:38.4]} 9... a6 {[%clk 0:02:46.3]} 10.
Bf3 {[%clk 0:01:38.7]} 10... Qc7 {[%clk 0:02:45.4]} 11. b3 {[%clk 0:01:37.4]}
11... e5 {[%clk 0:02:36.5]} 12. Nc2 {[%clk 0:01:36.4]} 12... Be6 {[%clk
0:02:32.3]} 13. Bb2 {[%clk 0:01:35.1]} 13... Rac8 {[%clk 0:02:31.4]} 14. Nb4
{[%clk 0:01:32.1]} 14... e4 {[%clk 0:02:26.5]} 15. Be2 {[%clk 0:01:27.3]} 15...
Rfd8 {[%clk 0:01:51.3]} 16. Qd2 {[%clk 0:01:11]} 16... a5 {[%clk 0:01:45.3]} 17.
Nbd5 {[%clk 0:01:10.1]} 17... Bxd5 {[%clk 0:01:45.3]} 18. Nxd5 {[%clk
0:01:06.5]} 18... Nxd5 {[%clk 0:01:44.9]} 19. Bxg7 {[%clk 0:01:06.8]} 19... Nxe3
{[%clk 0:01:33.1]} 20. Bf6 {[%clk 0:00:51.4]} 20... Nxf1 {[%clk 0:01:19.9]} 21.
Rxf1 {[%clk 0:00:33.7]} 21... Nd7 {[%clk 0:01:05.4]} 22. Bb2 {[%clk 0:00:26.9]}
22... Ne5 {[%clk 0:01:03.6]} 23. Qf4 {[%clk 0:00:27.5]} 23... f5 {[%clk
0:00:59.1]} 24. Rd1 {[%clk 0:00:23.2]} 24... Qe7 {[%clk 0:00:54.7]} 25. h4
{[%clk 0:00:22.4]} 25... Re8 {[%clk 0:00:37]} 26. Rd5 {[%clk 0:00:21]} 26... Rc5
{[%clk 0:00:29.4]} 27. Rd1 {[%clk 0:00:20.2]} 27... b6 {[%clk 0:00:27.5]} 28.
Ba3 {[%clk 0:00:19.9]} 28... Rc6 {[%clk 0:00:25.1]} 29. Rd5 {[%clk 0:00:20.5]}
29... Qe6 {[%clk 0:00:18.6]} 30. g3 {[%clk 0:00:20.8]} 30... Kg7 {[%clk
0:00:18.5]} 31. Qe3 {[%clk 0:00:20.3]} 31... h6 {[%clk 0:00:18.1]} 32. Qd4
{[%clk 0:00:20.6]} 32... Kf7 {[%clk 0:00:17.9]} 33. Bb2 {[%clk 0:00:20.1]} 33...
Re7 {[%clk 0:00:15.6]} 34. Ba3 {[%clk 0:00:20.1]} 34... Rd7 {[%clk 0:00:15.8]}
35. Qe3 {[%clk 0:00:20.3]} 35... Rc5 {[%clk 0:00:14.5]} 36. Bxc5 {[%clk
0:00:19.6]} 36... bxc5 {[%clk 0:00:15.4]} 37. Qxh6 {[%clk 0:00:18.2]} 37... Qf6
{[%clk 0:00:15.9]} 38. Qf4 {[%clk 0:00:14.7]} 38... Nc6 {[%clk 0:00:15.5]} 39.
h5 {[%clk 0:00:13.4]} 39... Nd4 {[%clk 0:00:15.7]} 40. hxg6+ {[%clk 0:00:09.4]}
40... Kxg6 {[%clk 0:00:15.9]} 41. Bd1 {[%clk 0:00:10.2]} 41... Kf7 {[%clk
0:00:14.5]} 42. Bh5+ {[%clk 0:00:09.7]} 42... Ke6 {[%clk 0:00:15]} 43. g4 {[%clk
0:00:07.8]} 43... Ne2+ {[%clk 0:00:12.9]} 44. Kf1 {[%clk 0:00:05.8]} 44... Nxf4
{[%clk 0:00:13.8]} 45. gxf5+ {[%clk 0:00:03.7]} 45... Ke7 {[%clk 0:00:14.1]} 0-1

[Event "Late-Titled-Tuesday-Blitz-June-25-2024"]
[Site "Chess.com"]
[Date "2024.06.25"]
[Round "2"]
[White "Kaustubh_Kodihalli"]
[Black "MikeSailer"]
[Result "1-0"]
[WhiteElo "2446"]
[BlackElo "2036"]
[TimeControl "180+1"]
[EndTime "14:17:37 PDT"]
[Termination "Kaustubh_Kodihalli won on time"]

1. e4 {[%clk 0:03:00.9]} 1... d5 {[%clk 0:02:52.3]} 2. exd5 {[%clk 0:03:00.6]}
2... Qxd5 {[%clk 0:02:52.5]} 3. d4 {[%clk 0:03:00.6]} 3... Nc6 {[%clk
0:02:52.4]} 4. c3 {[%clk 0:02:58.7]} 4... Nf6 {[%clk 0:02:51.5]} 5. Nf3 {[%clk
0:02:58.6]} 5... Bg4 {[%clk 0:02:50.9]} 6. Be2 {[%clk 0:02:58.5]} 6... O-O-O
{[%clk 0:02:50.7]} 7. h3 {[%clk 0:02:48.5]} 7... Bf5 {[%clk 0:02:47.8]} 8. Qb3
{[%clk 0:02:39.3]} 8... Qxb3 {[%clk 0:02:41.1]} 9. axb3 {[%clk 0:02:40.2]} 9...
e6 {[%clk 0:02:25.8]} 10. O-O {[%clk 0:02:31.9]} 10... h6 {[%clk 0:02:13.6]} 11.
Bf4 {[%clk 0:02:31.2]} 11... g5 {[%clk 0:02:12.5]} 12. Bh2 {[%clk 0:02:30.7]}
12... Bd6 {[%clk 0:02:12.3]} 13. Bxd6 {[%clk 0:02:29.7]} 13... cxd6 {[%clk
0:02:11.3]} 14. b4 {[%clk 0:02:29.9]} 14... Kb8 {[%clk 0:01:58.7]} 15. Nbd2
{[%clk 0:02:18.7]} 15... Rdg8 {[%clk 0:01:33.4]} 16. b5 {[%clk 0:02:15.1]} 16...
Ne7 {[%clk 0:01:33.2]} 17. Nc4 {[%clk 0:02:12.3]} 17... Nc8 {[%clk 0:01:23.4]}
18. Ra3 {[%clk 0:02:05.9]} 18... h5 {[%clk 0:01:21.7]} 19. h4 {[%clk 0:01:08.3]}
19... gxh4 {[%clk 0:01:11.3]} 20. Nxh4 {[%clk 0:01:09.2]} 20... Be4 {[%clk
0:00:43]} 21. g3 {[%clk 0:00:48.5]} 21... b6 {[%clk 0:00:38.7]} 22. Ne3 {[%clk
0:00:38.8]} 22... Bb7 {[%clk 0:00:37.1]} 23. c4 {[%clk 0:00:37.3]} 23... Ng4
{[%clk 0:00:35.3]} 24. Rc1 {[%clk 0:00:22.7]} 24... Nxe3 {[%clk 0:00:33.1]} 25.
Rxe3 {[%clk 0:00:23.6]} 25... Rg5 {[%clk 0:00:26.8]} 26. Kh2 {[%clk 0:00:22.4]}
26... Kc7 {[%clk 0:00:20.9]} 27. Bf3 {[%clk 0:00:22.2]} 27... Bxf3 {[%clk
0:00:19.6]} 28. Rxf3 {[%clk 0:00:23.1]} 28... Kd7 {[%clk 0:00:18.7]} 29. Rxf7+
{[%clk 0:00:23]} 29... Ne7 {[%clk 0:00:18.5]} 30. Rf3 {[%clk 0:00:20.5]} 30...
Rg4 {[%clk 0:00:18.9]} 31. Rd3 {[%clk 0:00:20.2]} 31... Nf5 {[%clk 0:00:17.1]}
32. Nxf5 {[%clk 0:00:09.5]} 32... exf5 {[%clk 0:00:16.8]} 33. f3 {[%clk
0:00:05.4]} 33... Rg6 {[%clk 0:00:15.3]} 34. Rg1 {[%clk 0:00:05.4]} 34... h4
{[%clk 0:00:14.9]} 35. g4 {[%clk 0:00:05.9]} 35... fxg4 {[%clk 0:00:14.9]} 36.
Rxg4 {[%clk 0:00:06.5]} 36... Re6 {[%clk 0:00:13.9]} 37. Kh3 {[%clk 0:00:06.4]}
37... Re2 {[%clk 0:00:13.9]} 38. Rg2 {[%clk 0:00:06.4]} 38... Re1 {[%clk
0:00:06.1]} 39. Rg7+ {[%clk 0:00:06.5]} 39... Ke6 {[%clk 0:00:05]} 40. f4 {[%clk
0:00:05.1]} 40... Re2 {[%clk 0:00:02.3]} 41. d5+ {[%clk 0:00:03.1]} 41... Kf5
{[%clk 0:00:01.9]} 42. Rd4 {[%clk 0:00:02.5]} 1-0

[Event "Late-Titled-Tuesday-Blitz-June-25-2024"]
[Site "Chess.com"]
[Date "2024.06.25"]
[Round "2"]
[White "Quattroporte300"]
[Black "Juliana_Figueira"]
[Result "1-0"]
[WhiteElo "2430"]
[BlackElo "1928"]
[TimeControl "180+1"]
[EndTime "14:17:38 PDT"]
[Termination "Quattroporte300 won on time"]

1. e4 {[%clk 0:03:00.9]} 1... c5 {[%clk 0:02:59.7]} 2. Nc3 {[%clk 0:03:00]} 2...
d6 {[%clk 0:02:57.7]} 3. d4 {[%clk 0:02:59.3]} 3... cxd4 {[%clk 0:02:57.7]} 4.
Qxd4 {[%clk 0:03:00.2]} 4... Nc6 {[%clk 0:02:55.3]} 5. Qd2 {[%clk 0:03:00.4]}
5... Nf6 {[%clk 0:02:54.9]} 6. b3 {[%clk 0:03:00.7]} 6... a6 {[%clk 0:02:52.5]}
7. Bb2 {[%clk 0:03:00.3]} 7... e6 {[%clk 0:02:53]} 8. O-O-O {[%clk 0:02:59.6]}
8... Be7 {[%clk 0:02:53.3]} 9. f3 {[%clk 0:02:59.2]} 9... O-O {[%clk 0:02:53.7]}
10. g4 {[%clk 0:02:59.6]} 10... Nxg4 {[%clk 0:02:41.4]} 11. Kb1 {[%clk
0:02:51.5]} 11... Bg5 {[%clk 0:02:40.1]} 12. f4 {[%clk 0:02:48.1]} 12... Bh6
{[%clk 0:02:36.3]} 13. h3 {[%clk 0:02:24.5]} 13... Nf6 {[%clk 0:02:33.4]} 14.
Nge2 {[%clk 0:02:15.5]} 14... e5 {[%clk 0:02:29.5]} 15. Qxd6 {[%clk 0:02:09.1]}
15... Qxd6 {[%clk 0:02:26.9]} 16. Rxd6 {[%clk 0:02:10]} 16... exf4 {[%clk
0:02:23.8]} 17. Rg1 {[%clk 0:02:06.8]} 17... Kh8 {[%clk 0:02:23.6]} 18. Nd5
{[%clk 0:02:00.1]} 18... f3 {[%clk 0:02:01.1]} 19. Rxf6 {[%clk 0:01:24.2]} 19...
fxe2 {[%clk 0:01:55.4]} 20. Bxe2 {[%clk 0:01:24.5]} 20... Bd2 {[%clk 0:01:29.4]}
21. Rf3 {[%clk 0:01:09.3]} 21... f6 {[%clk 0:01:25.9]} 22. Rfg3 {[%clk
0:00:57.2]} 22... Bh6 {[%clk 0:01:22.2]} 23. Rf1 {[%clk 0:00:30.9]} 23... Bd7
{[%clk 0:00:21.1]} 24. Nxf6 {[%clk 0:00:22.4]} 24... Rad8 {[%clk 0:00:03.1]} 25.
Nxd7 {[%clk 0:00:17.5]} 25... Rxf1+ {[%clk 0:00:03.4]} 26. Bxf1 {[%clk
0:00:18.4]} 26... Rxd7 {[%clk 0:00:03.8]} 27. Bd3 {[%clk 0:00:18.9]} 27... Ne5
{[%clk 0:00:03.9]} 28. a4 {[%clk 0:00:17.5]} 28... Nxd3 {[%clk 0:00:03.5]} 29.
cxd3 {[%clk 0:00:18.3]} 29... Bf4 {[%clk 0:00:03.6]} 30. Rf3 {[%clk 0:00:18]}
30... Bd6 {[%clk 0:00:01.2]} 31. d4 {[%clk 0:00:15.8]} 31... Kg8 {[%clk
0:00:01]} 32. d5 {[%clk 0:00:15.6]} 32... Be7 {[%clk 0:00:01.7]} 33. Rd3 {[%clk
0:00:14.9]} 33... Bf6 {[%clk 0:00:01.9]} 34. e5 {[%clk 0:00:15.4]} 34... Bg5
{[%clk 0:00:01.7]} 35. e6 {[%clk 0:00:15.4]} 35... Rd6 {[%clk 0:00:01.3]} 36.
Ba3 {[%clk 0:00:16]} 36... Kf8 {[%clk 0:00:01.9]} 37. Bxd6+ {[%clk 0:00:15.7]}
37... Ke8 {[%clk 0:00:02.8]} 38. Be5 {[%clk 0:00:15.8]} 38... Ke7 {[%clk
0:00:02.5]} 39. Bxg7 {[%clk 0:00:15]} 39... Bf4 {[%clk 0:00:01.9]} 40. Bd4
{[%clk 0:00:14.4]} 40... Bd6 {[%clk 0:00:02.8]} 41. Rf3 {[%clk 0:00:13.2]} 41...
Kd8 {[%clk 0:00:02.1]} 42. Rf7 {[%clk 0:00:13.3]} 42... Be7 {[%clk 0:00:02.1]}
43. Rxh7 {[%clk 0:00:13.1]} 43... Bd6 {[%clk 0:00:01.6]} 44. Rf7 {[%clk
0:00:13]} 44... Be7 {[%clk 0:00:01.3]} 45. Bf6 {[%clk 0:00:13.3]} 45... Bxf6
{[%clk 0:00:01.3]} 46. Rxf6 {[%clk 0:00:13.8]} 46... b5 {[%clk 0:00:01.4]} 47.
d6 {[%clk 0:00:13.6]} 1-0

[Event "Late-Titled-Tuesday-Blitz-June-25-2024"]
[Site "Chess.com"]
[Date "2024.06.25"]
[Round "2"]
[White "Veleamater"]
[Black "Denmark2015"]
[Result "0-1"]
[WhiteElo "2387"]
[BlackElo "2629"]
[TimeControl "180+1"]
[EndTime "14:17:39 PDT"]
[Termination "Denmark2015 won on time"]

1. g3 {[%clk 0:03:00.9]} 1... e6 {[%clk 0:03:00.9]} 2. Bg2 {[%clk 0:03:00]} 2...
d5 {[%clk 0:03:01.2]} 3. d3 {[%clk 0:03:00.2]} 3... Nf6 {[%clk 0:03:01]} 4. Nf3
{[%clk 0:03:00.4]} 4... b6 {[%clk 0:03:01.5]} 5. O-O {[%clk 0:03:00.6]} 5... Bb7
{[%clk 0:03:02.2]} 6. h3 {[%clk 0:03:01]} 6... Be7 {[%clk 0:03:02.1]} 7. Nc3
{[%clk 0:03:01.3]} 7... c5 {[%clk 0:03:02.2]} 8. e4 {[%clk 0:03:00.2]} 8... Nc6
{[%clk 0:03:02]} 9. Nd2 {[%clk 0:02:59.6]} 9... a6 {[%clk 0:02:54.7]} 10. f4
{[%clk 0:02:58]} 10... b5 {[%clk 0:02:47.9]} 11. e5 {[%clk 0:02:32.9]} 11... Nd7
{[%clk 0:02:46.2]} 12. g4 {[%clk 0:02:32.8]} 12... b4 {[%clk 0:02:41.5]} 13. Ne2
{[%clk 0:02:31.6]} 13... Qb6 {[%clk 0:02:40]} 14. g5 {[%clk 0:02:26.2]} 14... g6
{[%clk 0:02:32.7]} 15. Nf3 {[%clk 0:02:23.8]} 15... a5 {[%clk 0:02:23]} 16. h4
{[%clk 0:02:22.9]} 16... a4 {[%clk 0:02:13]} 17. Ng3 {[%clk 0:02:20.7]} 17...
O-O-O {[%clk 0:02:00.1]} 18. c3 {[%clk 0:02:13.4]} 18... Kb8 {[%clk 0:01:57.3]}
19. Bd2 {[%clk 0:02:10.7]} 19... Rc8 {[%clk 0:01:53.3]} 20. Qxa4 {[%clk
0:02:00.8]} 20... Ba6 {[%clk 0:01:41]} 21. Qc2 {[%clk 0:01:46.9]} 21... Qb5
{[%clk 0:01:30.8]} 22. Ne1 {[%clk 0:01:29.9]} 22... Bd8 {[%clk 0:01:21.2]} 23.
a4 {[%clk 0:01:22.1]} 23... Qb6 {[%clk 0:01:14.4]} 24. a5 {[%clk 0:01:19.3]}
24... Qb5 {[%clk 0:01:10.5]} 25. b3 {[%clk 0:00:50.6]} 25... bxc3 {[%clk
0:01:06.7]} 26. Bxc3 {[%clk 0:00:48.6]} 26... Nb4 {[%clk 0:00:49.2]} 27. Bxb4
{[%clk 0:00:46.9]} 27... cxb4 {[%clk 0:00:49.5]} 28. Qa2 {[%clk 0:00:33.3]}
28... h6 {[%clk 0:00:48.9]} 29. Rf3 {[%clk 0:00:27.6]} 29... Nc5 {[%clk
0:00:42.7]} 30. Bf1 {[%clk 0:00:25.7]} 30... d4 {[%clk 0:00:28.3]} 31. Ne4
{[%clk 0:00:22.3]} 31... Nb7 {[%clk 0:00:22.1]} 32. Nd6 {[%clk 0:00:17.3]} 32...
Nxd6 {[%clk 0:00:21]} 33. exd6 {[%clk 0:00:17.3]} 33... Rc6 {[%clk 0:00:19.6]}
34. Qf2 {[%clk 0:00:14]} 34... Rxd6 {[%clk 0:00:19.2]} 35. Nc2 {[%clk
0:00:13.4]} 35... Be7 {[%clk 0:00:16.9]} 36. Rc1 {[%clk 0:00:10.9]} 36... hxg5
{[%clk 0:00:14.9]} 37. hxg5 {[%clk 0:00:10.5]} 37... Rhd8 {[%clk 0:00:15.6]} 38.
Qd2 {[%clk 0:00:08.6]} 38... Rd5 {[%clk 0:00:14.6]} 39. Ne1 {[%clk 0:00:07.3]}
39... Rc5 {[%clk 0:00:12.9]} 40. Rc4 {[%clk 0:00:06.5]} 40... Rc7 {[%clk
0:00:09.8]} 41. Nc2 {[%clk 0:00:05.1]} 41... Qxa5 {[%clk 0:00:09]} 42. Rxc7
{[%clk 0:00:04.9]} 42... Qxc7 {[%clk 0:00:08.2]} 43. Rf2 {[%clk 0:00:03.8]}
43... Qc3 {[%clk 0:00:07.1]} 44. Qxc3 {[%clk 0:00:02.5]} 44... dxc3 {[%clk
0:00:08]} 45. Rf3 {[%clk 0:00:01.5]} 45... Bc5+ {[%clk 0:00:05.8]} 0-1